[Event "Mistrovství Čech mládeže 2023 - HD14"]
[Site "Harrachov, Czech Republic"]
[Date "2023.10.28"]
[Round "9.18"]
[White "Hrdlička, Jan"]
[Black "Ugrenovich, Jaroslav"]
[Result "1/2-1/2"]
[TimeControl "90m + 30s"]
[WhiteElo "1418"]
[BlackElo "1277"]

1. e4 {[%clk 01:30:52]} {[%emt 00:00:07]} c5 {[%clk 01:30:38]} {[%emt
00:00:22]} 2. Nf3 {[%clk 01:31:11]} {[%emt 00:00:12]} d6 {[%clk 01:30:33]}
{[%emt 00:00:35]} 3. d4 {[%clk 01:31:30]} {[%emt 00:00:11]} cxd4 {[%clk
01:30:58]} {[%emt 00:00:05]} 4. Nxd4 {[%clk 01:31:55]} {[%emt 00:00:05]} Nf6
{[%clk 01:31:23]} {[%emt 00:00:05]} 5. Nc3 {[%clk 01:32:02]} {[%emt 00:00:23]}
a6 {[%clk 01:31:46]} {[%emt 00:00:07]} 6. f3 {[%clk 01:31:00]} {[%emt
00:01:31]} e6 {[%clk 01:31:47]} {[%emt 00:00:29]} 7. Be3 {[%clk 01:29:55]}
{[%emt 00:01:35]} Be7 {[%clk 01:31:15]} {[%emt 00:01:02]} 8. Qd2 {[%clk
01:29:30]} {[%emt 00:00:56]} Nbd7 {[%clk 01:31:18]} {[%emt 00:00:27]} 9. O-O-O
{[%clk 01:27:30]} {[%emt 00:02:29]} O-O {[%clk 01:31:41]} {[%emt 00:00:07]} 10.
g4 {[%clk 01:26:51]} {[%emt 00:01:08]} b5 {[%clk 01:30:34]} {[%emt 00:01:38]}
11. Nc6 {[%clk 01:25:50]} {[%emt 00:01:31]} Qe8 {[%clk 01:30:17]} {[%emt
00:00:48]} 12. g5 {[%clk 01:25:48]} {[%emt 00:00:32]} Nh5 {[%clk 01:30:41]}
{[%emt 00:00:05]} 13. Nxe7+ {[%clk 01:23:52]} {[%emt 00:02:26]} Qxe7 {[%clk
01:31:01]} {[%emt 00:00:10]} 14. Qxd6 {[%clk 01:23:52]} {[%emt 00:00:29]} Qxd6
{[%clk 01:29:54]} {[%emt 00:01:37]} 15. Rxd6 {[%clk 01:24:05]} {[%emt
00:00:18]} Rd8 {[%clk 01:24:06]} {[%emt 00:06:17]} 16. Be2 {[%clk 01:21:29]}
{[%emt 00:03:05]} g6 {[%clk 01:23:48]} {[%emt 00:00:49]} 17. Rhd1 {[%clk
01:21:18]} {[%emt 00:00:41]} Ng7 {[%clk 01:23:14]} {[%emt 00:01:05]} 18. f4
{[%clk 01:19:53]} {[%emt 00:01:55]} Rb8 {[%clk 01:23:11]} {[%emt 00:00:33]} 19.
Bf3 {[%clk 01:18:57]} {[%emt 00:01:26]} Ne8 {[%clk 01:20:35]} {[%emt 00:03:06]}
20. R6d2 {[%clk 01:18:03]} {[%emt 00:01:24]} Ng7 {[%clk 01:16:05]} {[%emt
00:05:01]} 21. Ne2 {[%clk 01:16:27]} {[%emt 00:02:05]} Re8 {[%clk 01:15:16]}
{[%emt 00:01:18]} 22. Rxd7 {[%clk 01:11:30]} {[%emt 00:05:28]} Bxd7 {[%clk
01:15:40]} {[%emt 00:00:06]} 23. Rxd7 {[%clk 01:11:54]} {[%emt 00:00:05]} Red8
{[%clk 01:15:44]} {[%emt 00:00:25]} 24. Rxd8+ {[%clk 01:12:07]} {[%emt
00:00:18]} Rxd8 {[%clk 01:16:08]} {[%emt 00:00:07]} 25. Ng3 {[%clk 01:11:58]}
{[%emt 00:00:38]} Ne8 {[%clk 01:16:08]} {[%emt 00:00:30]} 26. e5 {[%clk
01:11:29]} {[%emt 00:00:59]} Nc7 {[%clk 01:14:31]} {[%emt 00:02:07]} 27. Ne4
{[%clk 01:10:07]} {[%emt 00:01:52]} Nd5 {[%clk 01:14:43]} {[%emt 00:00:18]} 28.
Nf6+ {[%clk 01:10:11]} {[%emt 00:00:27]} Nxf6 {[%clk 01:14:33]} {[%emt
00:00:40]} 29. gxf6 {[%clk 01:09:35]} {[%emt 00:01:05]} h5 {[%clk 01:14:33]}
{[%emt 00:00:30]} 30. h4 {[%clk 01:09:45]} {[%emt 00:00:21]} Rd7 {[%clk
01:14:40]} {[%emt 00:00:23]} 31. b3 {[%clk 01:08:13]} {[%emt 00:02:02]} Kh7
{[%clk 01:13:43]} {[%emt 00:01:28]} 32. c3 {[%clk 01:07:23]} {[%emt 00:01:20]}
Rd3 {[%clk 01:14:03]} {[%emt 00:00:10]} 33. Bb7 {[%clk 00:59:13]} {[%emt
00:08:38]} Rxe3 {[%clk 01:14:23]} {[%emt 00:00:12]} 34. Kd2 {[%clk 00:59:32]}
{[%emt 00:00:10]} Rh3 {[%clk 01:14:29]} {[%emt 00:00:24]} 35. Bxa6 {[%clk
00:59:29]} {[%emt 00:00:34]} Rxh4 {[%clk 01:14:53]} {[%emt 00:00:06]} 36. Bxb5
{[%clk 00:58:10]} {[%emt 00:01:49]} Rxf4 {[%clk 01:15:03]} {[%emt 00:00:19]} 37.
Ke3 {[%clk 00:56:49]} {[%emt 00:01:51]} Rh4 {[%clk 01:15:17]} {[%emt 00:00:15]}
38. c4 {[%clk 00:56:36]} {[%emt 00:00:43]} Rh3+ {[%clk 01:15:32]} {[%emt
00:00:14]} 39. Kf4 {[%clk 00:54:10]} {[%emt 00:02:58]} Rh2 {[%clk 01:15:45]}
{[%emt 00:00:17]} 40. a4 {[%clk 00:53:17]} {[%emt 00:01:23]} Rb2 {[%clk
01:16:09]} {[%emt 00:00:06]} 41. a5 {[%clk 00:52:06]} {[%emt 00:01:42]} Rxb3
{[%clk 01:16:21]} {[%emt 00:00:17]} 42. a6 {[%clk 00:51:48]} {[%emt 00:00:48]}
h4 {[%clk 01:15:37]} {[%emt 00:01:14]} 43. Be8 {[%clk 00:50:39]} {[%emt
00:01:39]} Kg8 {[%clk 01:13:40]} {[%emt 00:02:27]} 44. c5 {[%clk 00:47:41]}
{[%emt 00:03:28]} Ra3 {[%clk 01:09:17]} {[%emt 00:04:52]} 45. c6 {[%clk
00:40:34]} {[%emt 00:07:37]} Ra4+ {[%clk 01:04:39]} {[%emt 00:05:08]} 46. Kg5
{[%clk 00:40:03]} {[%emt 00:01:01]} Rxa6 {[%clk 01:03:57]} {[%emt 00:01:12]} 47.
c7 {[%clk 00:40:24]} {[%emt 00:00:09]} Ra8 {[%clk 01:04:12]} {[%emt 00:00:15]}
48. Bd7 {[%clk 00:40:42]} {[%emt 00:00:12]} h3 {[%clk 01:04:36]} {[%emt
00:00:06]} 49. c8=Q+ {[%clk 00:40:55]} {[%emt 00:00:17]} Rxc8 {[%clk 01:04:58]}
{[%emt 00:00:08]} 50. Bxc8 {[%clk 00:41:21]} {[%emt 00:00:04]} Kf8 {[%clk
01:05:13]} {[%emt 00:00:14]} 51. Bd7 {[%clk 00:41:33]} {[%emt 00:00:17]} Kg8
{[%clk 01:05:26]} {[%emt 00:00:18]} 52. Bc6 {[%clk 00:35:10]} {[%emt 00:06:53]}
Kh7 {[%clk 01:05:07]} {[%emt 00:00:49]} 53. Be4 {[%clk 00:32:43]} {[%emt
00:02:57]} h2 {[%clk 01:05:05]} {[%emt 00:00:32]} 54. Bf3 {[%clk 00:32:29]}
{[%emt 00:00:44]} Kh8 {[%clk 01:05:10]} {[%emt 00:00:25]} 55. Kg4 {[%clk
00:27:45]} {[%emt 00:05:14]} Kh7 {[%clk 01:05:28]} {[%emt 00:00:11]} 56. Kg3
{[%clk 00:27:41]} {[%emt 00:00:35]} Kh6 {[%clk 01:05:45]} {[%emt 00:00:13]} 57.
Kxh2 {[%clk 00:27:57]} {[%emt 00:00:15]} Kg5 {[%clk 01:06:00]} {[%emt
00:00:15]} 58. Be4 {[%clk 00:28:05]} {[%emt 00:00:21]} Kf4 {[%clk 01:06:09]}
{[%emt 00:00:21]} 59. Bxg6 {[%clk 00:28:14]} {[%emt 00:00:21]} Kxe5 {[%clk
01:06:23]} {[%emt 00:00:17]} 60. Bxf7 {[%clk 00:27:40]} {[%emt 00:01:05]} Kxf6
{[%clk 01:06:39]} {[%emt 00:00:13]} 61. Bxe6 {[%clk 00:27:55]} {[%emt
00:00:15]} 1/2-1/2